fUSD/lending_fUSD_20260504
["ID","MTS","AMOUNT","RATE_DAILY","PERIOD"]
[421574702,1777906171000,-2486.78,0.00042191,60]
[421574703,1777906171000,-2486.78,0.00042191,60]
[421574705,1777906171000,-2486.78,0.00042191,60]
[421574700,1777906171000,-2486.78,0.00042191,60]
[421574708,1777906171000,-2486.78,0.00042191,60]
[421574707,1777906171000,-2486.78,0.00042191,60]
[421574706,1777906171000,-2486.78,0.00042191,60]
[421574704,1777906171000,-2486.78,0.00042191,60]
[421574732,1777906172000,-500.0,0.00042191,60]
[421574739,1777906172000,-500.0,0.00042191,60]
[421574735,1777906172000,-500.0,0.00042191,60]
[421574734,1777906172000,-500.0,0.00042191,60]
[421574736,1777906172000,-500.0,0.00042191,60]
[421574733,1777906172000,-529.13595945,0.00042191,60]
[421574731,1777906172000,-502.70022738,0.00042191,60]
[421574730,1777906172000,-500.0,0.00042191,60]
[421574725,1777906172000,-376.03588703,0.00042191,60]
[421574728,1777906172000,-500.0,0.00042191,60]
[421574726,1777906172000,-505.68059782,0.00042191,60]
[421574737,1777906172000,-500.0,0.00042191,60]
[421574722,1777906172000,-500.0,0.00042191,60]
[421574724,1777906172000,-500.0,0.00042191,60]
[421574723,1777906172000,-500.0,0.00042191,60]
[421574721,1777906172000,-500.0,0.00042191,60]
[421574720,1777906172000,-500.0,0.00042191,60]
[421574729,1777906172000,-500.0,0.00042191,60]
[421574738,1777906172000,-500.0,0.00042191,60]
[421574727,1777906172000,-268.24036276,0.00042191,60]
[421574741,1777906172000,-500.0,0.00042191,60]
[421574740,1777906172000,-500.0,0.00042191,60]
[421574760,1777906172000,-500.0,0.00042191,60]
[421574757,1777906172000,-507.8280387,0.00042191,60]
[421574756,1777906172000,-502.2528505,0.00042191,60]
[421574758,1777906172000,-500.0,0.00042191,60]
[421574755,1777906172000,-174.46,0.00042191,60]
[421574754,1777906172000,-500.0,0.00042191,60]
[421574753,1777906172000,-522.62327343,0.00042191,60]
[421574752,1777906172000,-495.74623455,0.00042191,60]
[421574759,1777906172000,-161.26108224,0.00042191,60]
[421574750,1777906172000,-500.0,0.00042191,60]
[421574751,1777906172000,-500.0,0.00042191,60]
[421574743,1777906172000,-500.0,0.00042191,60]
[421574744,1777906172000,-500.0,0.00042191,60]
[421574745,1777906172000,-500.0,0.00042191,60]
[421574742,1777906172000,-500.0,0.00042191,60]
[421574748,1777906172000,-500.0,0.00042191,60]
[421574749,1777906172000,-500.0,0.00042191,60]
[421574747,1777906172000,-500.0,0.00042191,60]
[421574746,1777906172000,-500.0,0.00042191,60]
[421574775,1777906173000,-1502.0,0.00042191,60]
[421574770,1777906173000,-1502.0,0.00042191,60]
[421574774,1777906173000,-1502.0,0.00042191,60]
[421574773,1777906173000,-500.0,0.00042191,60]
[421574771,1777906173000,-1502.0,0.00042191,60]
[421574772,1777906173000,-1502.0,0.00042191,60]
[421574769,1777906173000,-1502.0,0.00042191,60]
[421574764,1777906173000,-1502.0,0.00042191,60]
[421574767,1777906173000,-1502.0,0.00042191,60]
[421574766,1777906173000,-1502.0,0.00042191,60]
[421574765,1777906173000,-1502.0,0.00042191,60]
[421574763,1777906173000,-1502.0,0.00042191,60]
[421574761,1777906173000,-1502.0,0.00042191,60]
[421574762,1777906173000,-1502.0,0.00042191,60]
[421574776,1777906173000,-1502.0,0.00042191,60]
[421574768,1777906173000,-1502.0,0.00042191,60]
[421574778,1777906173000,-1502.0,0.00042191,60]
[421574779,1777906173000,-1502.0,0.00042191,60]
[421574788,1777906173000,-428.65,0.00042191,60]
[421574777,1777906173000,-1502.0,0.00042191,60]
[421574795,1777906173000,-500.0,0.00042191,60]
[421574794,1777906173000,-500.0,0.00042191,60]
[421574793,1777906173000,-500.0,0.00042191,60]
[421574792,1777906173000,-276.6,0.00042191,60]
[421574790,1777906173000,-500.0,0.00042191,60]
[421574789,1777906173000,-565.75,0.00042191,60]
[421574791,1777906173000,-500.0,0.00042191,60]
[421574787,1777906173000,-500.0,0.00042191,60]
[421574785,1777906173000,-500.0,0.00042191,60]
[421574784,1777906173000,-500.0,0.00042191,60]
[421574783,1777906173000,-542.9,0.00042191,60]
[421574781,1777906173000,-500.0,0.00042191,60]
[421574782,1777906173000,-500.0,0.00042191,60]
[421574780,1777906173000,-1502.0,0.00042191,60]
[421574786,1777906173000,-183.38,0.00042191,60]
[421574807,1777906174000,-500.0,0.00042191,60]
[421574808,1777906174000,-543.68619862,0.00042191,60]
[421574810,1777906174000,-500.0,0.00042191,60]
[421574814,1777906174000,-500.0,0.00042191,60]
[421574812,1777906174000,-500.0,0.00042191,60]
[421574804,1777906174000,-500.0,0.00042191,60]
[421574809,1777906174000,-500.0,0.00042191,60]
[421574806,1777906174000,-154.06148347,0.00042191,60]
[421574798,1777906174000,-500.0,0.00042191,60]
[421574803,1777906174000,-500.0,0.00042191,60]
[421574802,1777906174000,-500.0,0.00042191,60]
[421574801,1777906174000,-500.0,0.00042191,60]
[421574799,1777906174000,-500.0,0.00042191,60]
[421574800,1777906174000,-500.0,0.00042191,60]
[421574797,1777906174000,-609.16456189,0.00042191,60]
[421574796,1777906174000,-500.0,0.00042191,60]
[421574805,1777906174000,-500.0,0.00042191,60]
[421574813,1777906174000,-397.34,0.00042191,60]
[421574811,1777906174000,-500.0,0.00042191,60]
[421574816,1777906174000,-500.0,0.00042191,60]
[421574833,1777906174000,-500.0,0.00042191,60]
[421574831,1777906174000,-500.0,0.00042191,60]
[421574832,1777906174000,-500.0,0.00042191,60]
[421574829,1777906174000,-500.0,0.00042191,60]
[421574830,1777906174000,-500.0,0.00042191,60]
[421574828,1777906174000,-500.0,0.00042191,60]
[421574826,1777906174000,-500.0,0.00042191,60]
[421574827,1777906174000,-447.21,0.00042191,60]
[421574815,1777906174000,-500.0,0.00042191,60]
[421574824,1777906174000,-574.46,0.00042191,60]
[421574823,1777906174000,-500.0,0.00042191,60]
[421574822,1777906174000,-500.0,0.00042191,60]
[421574821,1777906174000,-500.0,0.00042191,60]
[421574819,1777906174000,-500.0,0.00042191,60]
[421574820,1777906174000,-298.72382635,0.00042191,60]
[421574818,1777906174000,-500.0,0.00042191,60]
[421574817,1777906174000,-500.0,0.00042191,60]
[421574825,1777906174000,-445.16,0.00042191,60]
[421574846,1777906175000,-500.0,0.00042191,60]
[421574847,1777906175000,-500.0,0.00042191,60]
[421574852,1777906175000,-500.0,0.00042191,60]
[421574850,1777906175000,-500.0,0.00042191,60]
[421574849,1777906175000,-261.93,0.00042191,60]
[421574845,1777906175000,-500.0,0.00042191,60]
[421574848,1777906175000,-500.0,0.00042191,60]
[421574842,1777906175000,-554.91,0.00042191,60]
[421574837,1777906175000,-500.0,0.00042191,60]
[421574841,1777906175000,-173.68830138,0.00042191,60]
[421574843,1777906175000,-533.81399456,0.00042191,60]
[421574840,1777906175000,-340.77,0.00042191,60]
[421574839,1777906175000,-500.0,0.00042191,60]
[421574838,1777906175000,-251.4187494,0.00042191,60]
[421574835,1777906175000,-500.0,0.00042191,60]
[421574836,1777906175000,-318.55904277,0.00042191,60]
[421574851,1777906175000,-500.0,0.00042191,60]
[421574844,1777906175000,-500.0,0.00042191,60]
[421574834,1777906175000,-500.0,0.00042191,60]
[421574853,1777906175000,-500.0,0.00042191,60]
[421574854,1777906175000,-167.99,0.00042191,60]
[421574855,1777906175000,-500.0,0.00042191,60]
[421574873,1777906175000,-500.0,0.00042191,60]
[421574872,1777906175000,-500.0,0.00042191,60]
[421574871,1777906175000,-500.0,0.00042191,60]
[421574870,1777906175000,-555.31,0.00042191,60]
[421574868,1777906175000,-267.81,0.00042191,60]
[421574869,1777906175000,-242.02,0.00042191,60]
[421574866,1777906175000,-500.0,0.00042191,60]
[421574864,1777906175000,-359.22704131,0.00042191,60]
[421574867,1777906175000,-500.0,0.00042191,60]
[421574862,1777906175000,-500.0,0.00042191,120]
[421574863,1777906175000,-500.0,0.00042191,60]
[421574857,1777906175000,-500.0,0.00042191,60]
[421574858,1777906175000,-249.90164699,0.00042191,60]
[421574860,1777906175000,-500.0,0.00042191,60]
[421574856,1777906175000,-187.42140276,0.00042191,60]
[421574859,1777906175000,-392.26168037,0.00042191,60]
[421574865,1777906175000,-500.0,0.00042191,60]
[421574861,1777906175000,-191.66,0.00042191,60]
[421574885,1777906176000,-500.0,0.00042191,60]
[421574891,1777906176000,-367.49973256,0.00042191,60]
[421574892,1777906176000,-500.0,0.00042191,60]
[421574889,1777906176000,-500.0,0.00042191,60]
[421574888,1777906176000,-500.0,0.00042191,60]
[421574887,1777906176000,-244.88730124,0.00042191,60]
[421574886,1777906176000,-505.79700804,0.00042191,60]
[421574884,1777906176000,-500.0,0.00042191,60]
[421574875,1777906176000,-500.0,0.00042191,60]
[421574883,1777906176000,-500.0,0.00042191,60]
[421574880,1777906176000,-509.58867466,0.00042191,60]
[421574881,1777906176000,-198.47858576,0.00042191,60]
[421574878,1777906176000,-500.0,0.00042191,60]
[421574879,1777906176000,-500.0,0.00042191,60]
[421574876,1777906176000,-186.07,0.00042191,60]
[421574877,1777906176000,-500.0,0.00042191,60]
[421574874,1777906176000,-500.0,0.00042191,60]
[421574882,1777906176000,-412.6388347,0.00042191,60]
[421574890,1777906176000,-500.0,0.00042191,60]
[421574896,1777906176000,-500.0,0.00042191,60]
[421574897,1777906176000,-430.11,0.00042191,60]
[421574913,1777906176000,-500.0,0.00042191,60]
[421574912,1777906176000,-500.0,0.00042191,60]
[421574911,1777906176000,-500.0,0.00042191,60]
[421574909,1777906176000,-500.0,0.00042191,60]
[421574910,1777906176000,-457.08,0.00042191,60]
[421574906,1777906176000,-500.0,0.00042191,60]
[421574908,1777906176000,-500.0,0.00042191,60]
[421574907,1777906176000,-505.0,0.00042191,60]
[421574903,1777906176000,-500.0,0.00042191,60]
[421574893,1777906176000,-500.0,0.00042191,60]
[421574904,1777906176000,-422.61199429,0.00042191,60]
[421574902,1777906176000,-590.28972724,0.00042191,60]
[421574899,1777906176000,-500.0,0.00042191,60]
[421574901,1777906176000,-164.03353815,0.00042191,60]
[421574900,1777906176000,-501.96572734,0.00042191,60]
[421574898,1777906176000,-500.0,0.00042191,60]
[421574895,1777906176000,-500.0,0.00042191,60]
[421574894,1777906176000,-522.02105805,0.00042191,60]
[421574905,1777906176000,-343.43246004,0.00042191,60]
[421574924,1777906177000,-500.0,0.00042191,60]
[421574925,1777906177000,-562.83,0.00042191,60]
[421574929,1777906177000,-500.0,0.00042191,60]
[421574930,1777906177000,-500.0,0.00042191,60]
[421574928,1777906177000,-500.0,0.00042191,60]
[421574926,1777906177000,-500.0,0.00042191,60]
[421574927,1777906177000,-500.0,0.00042191,60]
[421574923,1777906177000,-500.0,0.00042191,60]
[421574917,1777906177000,-500.0,0.00042191,60]
[421574921,1777906177000,-500.0,0.00042191,60]
[421574920,1777906177000,-500.0,0.00042191,60]
[421574919,1777906177000,-531.49142828,0.00042191,60]
[421574918,1777906177000,-500.0,0.00042191,60]
[421574916,1777906177000,-500.0,0.00042191,60]
[421574915,1777906177000,-257.78,0.00042191,60]
[421574914,1777906177000,-348.84257548,0.00042191,60]
[421574931,1777906177000,-388.57,0.00042191,60]
[421574922,1777906177000,-394.15,0.00042191,60]
[421574934,1777906177000,-248.37220707,0.00042191,60]
[421574932,1777906177000,-529.19241237,0.00042191,60]
[421574933,1777906177000,-340.70070047,0.00042191,60]
[421574953,1777906177000,-571.03765769,0.00042191,60]
[421574951,1777906177000,-500.0,0.00042191,60]
[421574949,1777906177000,-425.92,0.00042191,60]
[421574947,1777906177000,-159.40571608,0.00042191,60]
[421574950,1777906177000,-500.0,0.00042191,60]
[421574948,1777906177000,-500.0,0.00042191,60]
[421574946,1777906177000,-500.0,0.00042191,60]
[421574945,1777906177000,-271.54961063,0.00042191,60]
[421574944,1777906177000,-351.89902169,0.00042191,60]
[421574952,1777906177000,-628.87,0.00042191,60]
[421574942,1777906177000,-500.0,0.00042191,60]
[421574941,1777906177000,-537.82,0.00042191,60]
[421574939,1777906177000,-268.41649936,0.00042191,60]
[421574940,1777906177000,-381.50669336,0.00042191,60]
[421574938,1777906177000,-231.68378409,0.00042191,60]
[421574936,1777906177000,-223.87806704,0.00042191,60]
[421574937,1777906177000,-500.0,0.00042191,60]
[421574935,1777906177000,-500.0,0.00042191,60]
[421574943,1777906177000,-500.0,0.00042191,60]
[421574965,1777906178000,-500.0,0.00042191,60]
[421574966,1777906178000,-500.0,0.00042191,60]
[421574971,1777906178000,-500.0,0.00042191,60]
[421574968,1777906178000,-367.21871563,0.00042191,60]
[421574970,1777906178000,-500.0,0.00042191,60]
[421574964,1777906178000,-500.0,0.00042191,60]
[421574967,1777906178000,-500.0,0.00042191,60]
[421574963,1777906178000,-500.0,0.00042191,60]
[421574956,1777906178000,-500.0,0.00042191,60]
[421574962,1777906178000,-500.0,0.00042191,60]
[421574959,1777906178000,-500.0,0.00042191,60]
[421574961,1777906178000,-500.0,0.00042191,60]
[421574958,1777906178000,-500.0,0.00042191,60]
[421574957,1777906178000,-367.49707919,0.00042191,60]
[421574955,1777906178000,-500.0,0.00042191,60]
[421574954,1777906178000,-500.0,0.00042191,60]
[421574969,1777906178000,-500.0,0.00042191,60]
[421574960,1777906178000,-500.0,0.00042191,60]
[421574973,1777906178000,-500.0,0.00042191,60]
[421574992,1777906178000,-500.0,0.00042191,60]
[421574972,1777906178000,-397.75400681,0.00042191,60]
[421574974,1777906178000,-500.0,0.00042191,60]
[421574991,1777906178000,-221.93165232,0.00042191,60]
[421574990,1777906178000,-501.84244243,0.00042191,60]
[421574989,1777906178000,-500.0,0.00042191,60]
[421574988,1777906178000,-500.0,0.00042191,60]
[421574984,1777906178000,-158.25860076,0.00042191,60]
[421574986,1777906178000,-500.0,0.00042191,60]
[421574985,1777906178000,-500.0,0.00042191,60]
[421574987,1777906178000,-1457.589938,0.00042191,60]
[421574982,1777906178000,-500.0,0.00042191,60]
[421574981,1777906178000,-161.70962675,0.00042191,60]
[421574980,1777906178000,-166.77,0.00042191,60]
[421574979,1777906178000,-500.0,0.00042191,60]
[421574978,1777906178000,-161.67610989,0.00042191,60]
[421574976,1777906178000,-500.0,0.00042191,60]
[421574977,1777906178000,-355.83,0.00042191,60]
[421574983,1777906178000,-540.89,0.00042191,60]
[421574975,1777906178000,-500.0,0.00042191,60]
[421575006,1777906179000,-208.32386766,0.00042191,60]
[421575004,1777906179000,-540.38,0.00042191,60]
[421575009,1777906179000,-500.0,0.00042191,60]
[421575011,1777906179000,-500.0,0.00042191,60]
[421575010,1777906179000,-500.0,0.00042191,60]
[421575008,1777906179000,-1088.124743,0.00042191,60]
[421575005,1777906179000,-390.11991009,0.00042191,60]
[421575007,1777906179000,-537.83135592,0.00042191,60]
[421575003,1777906179000,-500.0,0.00042191,60]
[421574993,1777906179000,-533.31,0.00042191,60]
[421575000,1777906179000,-270.79636952,0.00042191,60]
[421575002,1777906179000,-500.0,0.00042191,60]
[421574999,1777906179000,-500.0,0.00042191,60]
[421574998,1777906179000,-336.59506229,0.00042191,60]
[421574995,1777906179000,-503.62794139,0.00042191,60]
[421574996,1777906179000,-500.0,0.00042191,60]
[421574994,1777906179000,-500.0,0.00042191,60]
[421575012,1777906179000,-511.98,0.00042191,60]
[421575001,1777906179000,-500.0,0.00042191,60]
[421575014,1777906179000,-500.0,0.00042191,60]
[421574997,1777906179000,-581.3,0.00042191,60]
[421575015,1777906179000,-500.0,0.00042191,60]
[421575033,1777906179000,-500.0,0.00042191,60]
[421575032,1777906179000,-278.36,0.00042191,60]
[421575034,1777906179000,-500.0,0.00042191,60]
[421575029,1777906179000,-178.77,0.00042191,60]
[421575031,1777906179000,-500.0,0.00042191,60]
[421575030,1777906179000,-500.0,0.00042191,60]
[421575028,1777906179000,-500.0,0.00042191,60]
[421575027,1777906179000,-500.0,0.00042191,60]
[421575026,1777906179000,-500.0,0.00042191,60]
[421575013,1777906179000,-500.0,0.00042191,60]
[421575024,1777906179000,-500.0,0.00042191,60]
[421575021,1777906179000,-500.0,0.00042191,60]
[421575020,1777906179000,-202.09,0.00042191,60]
[421575023,1777906179000,-500.0,0.00042191,60]
[421575022,1777906179000,-371.53519852,0.00042191,60]
[421575017,1777906179000,-245.89,0.00042191,60]
[421575019,1777906179000,-500.0,0.00042191,60]
[421575018,1777906179000,-355.25637869,0.00042191,60]
[421575016,1777906179000,-500.0,0.00042191,60]
[421575025,1777906179000,-500.0,0.00042191,60]
[421575046,1777906180000,-500.0,0.00042191,60]
[421575048,1777906180000,-316.36435323,0.00042191,60]
[421575047,1777906180000,-500.0,0.00042191,60]
[421575051,1777906180000,-500.0,0.00042191,60]
[421575052,1777906180000,-500.0,0.00042191,60]
[421575053,1777906180000,-500.0,0.00042191,60]
[421575045,1777906180000,-500.0,0.00042191,60]
[421575049,1777906180000,-500.0,0.00042191,60]
[421575042,1777906180000,-500.0,0.00042191,60]
[421575040,1777906180000,-500.0,0.00042191,60]
[421575043,1777906180000,-500.0,0.00042191,60]
[421575041,1777906180000,-500.0,0.00042191,60]
[421575038,1777906180000,-500.0,0.00042191,60]
[421575039,1777906180000,-159.00821582,0.00042191,60]
[421575037,1777906180000,-500.0,0.00042191,60]
[421575035,1777906180000,-324.41163505,0.00042191,60]
[421575036,1777906180000,-500.0,0.00042191,60]
[421575050,1777906180000,-368.76049151,0.00042191,60]
[421575044,1777906180000,-500.0,0.00042191,60]
[421575054,1777906180000,-500.0,0.00042191,60]
[421575055,1777906180000,-500.0,0.00042191,60]
[421575075,1777906180000,-408.94,0.00042191,60]
[421575074,1777906180000,-500.0,0.00042191,60]
[421575056,1777906180000,-500.0,0.00042191,60]
[421575072,1777906180000,-500.0,0.00042191,60]
[421575073,1777906180000,-500.0,0.00042191,60]
[421575071,1777906180000,-503.71510347,0.00042191,60]
[421575070,1777906180000,-231.50429922,0.00042191,60]
[421575068,1777906180000,-500.0,0.00042191,60]
[421575067,1777906180000,-252.38,0.00042191,60]
[421575066,1777906180000,-500.0,0.00042191,60]
[421575069,1777906180000,-500.0,0.00042191,60]
[421575065,1777906180000,-500.0,0.00042191,60]
[421575064,1777906180000,-500.0,0.00042191,60]
[421575062,1777906180000,-500.0,0.00042191,60]
[421575061,1777906180000,-500.0,0.00042191,60]
[421575060,1777906180000,-500.0,0.00042191,60]
[421575059,1777906180000,-261.1320393,0.00042191,60]
[421575058,1777906180000,-500.0,0.00042191,60]
[421575057,1777906180000,-500.0,0.00042191,60]
[421575063,1777906180000,-500.0,0.00042191,60]
[421575086,1777906181000,-500.0,0.00042191,60]
[421575092,1777906181000,-295.70974,0.00042191,60]
[421575091,1777906181000,-500.0,0.00042191,60]
[421575089,1777906181000,-528.5,0.00042191,60]
[421575088,1777906181000,-161.11,0.00042191,60]
[421575087,1777906181000,-500.0,0.00042191,60]
[421575085,1777906181000,-500.0,0.00042191,60]
[421575090,1777906181000,-500.0,0.00042191,60]
[421575083,1777906181000,-500.0,0.00042191,60]
[421575082,1777906181000,-500.0,0.00042191,60]
[421575079,1777906181000,-500.0,0.00042191,60]
[421575080,1777906181000,-220.31750455,0.00042191,60]
[421575081,1777906181000,-310.01476218,0.00042191,60]
[421575078,1777906181000,-500.0,0.00042191,60]
[421575076,1777906181000,-500.0,0.00042191,60]
[421575077,1777906181000,-500.0,0.00042191,60]
[421575084,1777906181000,-307.85006692,0.00042191,60]
[421575093,1777906181000,-500.0,0.00042191,60]
[421575096,1777906181000,-241.55,0.00042191,60]
[421575095,1777906181000,-500.0,0.00042191,60]
[421575112,1777906181000,-179.72,0.00042191,60]
[421575111,1777906181000,-500.0,0.00042191,60]
[421575110,1777906181000,-556.81963734,0.00042191,60]
[421575108,1777906181000,-500.0,0.00042191,60]
[421575109,1777906181000,-500.0,0.00042191,60]
[421575106,1777906181000,-480.22,0.00042191,60]
[421575107,1777906181000,-639.31,0.00042191,60]
[421575105,1777906181000,-500.0,0.00042191,60]
[421575094,1777906181000,-500.0,0.00042191,60]
[421575103,1777906181000,-500.0,0.00042191,60]
[421575102,1777906181000,-500.0,0.00042191,60]
[421575101,1777906181000,-500.0,0.00042191,60]
[421575100,1777906181000,-500.0,0.00042191,60]
[421575099,1777906181000,-500.0,0.00042191,60]
[421575098,1777906181000,-604.12,0.00042191,60]
[421575097,1777906181000,-164.41590008,0.00042191,60]
[421575104,1777906181000,-500.0,0.00042191,60]
[421575130,1777906182000,-500.0,0.00042191,60]
[421575128,1777906182000,-500.0,0.00042191,60]
[421575127,1777906182000,-175.42,0.00042191,60]
[421575126,1777906182000,-500.0,0.00042191,60]
[421575125,1777906182000,-396.2402606,0.00042191,60]
[421575124,1777906182000,-356.71,0.00042191,60]
[421575123,1777906182000,-500.0,0.00042191,60]
[421575122,1777906182000,-500.0,0.00042191,60]
[421575117,1777906182000,-326.93414427,0.00042191,60]
[421575120,1777906182000,-500.0,0.00042191,60]
[421575119,1777906182000,-500.0,0.00042191,60]
[421575118,1777906182000,-500.0,0.00042191,60]
[421575116,1777906182000,-161.31,0.00042191,60]
[421575113,1777906182000,-500.0,0.00042191,60]
[421575114,1777906182000,-500.0,0.00042191,60]
[421575129,1777906182000,-458.96,0.00042191,60]
[421575121,1777906182000,-500.0,0.00042191,60]
[421575115,1777906182000,-500.0,0.00042191,60]
[421575131,1777906182000,-500.66,0.00042191,60]
[421575134,1777906182000,-521.8,0.00042191,60]
[421575132,1777906182000,-365.06886333,0.00042191,60]
[421575149,1777906182000,-500.0,0.00042191,60]
[421575148,1777906182000,-500.0,0.00042191,60]
[421575150,1777906182000,-500.0,0.00042191,60]
[421575147,1777906182000,-500.0,0.00042191,60]
[421575146,1777906182000,-500.0,0.00042191,60]
[421575145,1777906182000,-500.0,0.00042191,60]
[421575144,1777906182000,-573.25469045,0.00042191,60]
[421575143,1777906182000,-355.29799131,0.00042191,60]
[421575151,1777906182000,-418.44,0.00042191,60]
[421575142,1777906182000,-500.0,0.00042191,60]
[421575140,1777906182000,-500.0,0.00042191,60]
[421575139,1777906182000,-445.52,0.00042191,60]
[421575138,1777906182000,-500.0,0.00042191,60]
[421575137,1777906182000,-259.38,0.00042191,60]
[421575135,1777906182000,-500.0,0.00042191,60]
[421575136,1777906182000,-500.0,0.00042191,60]
[421575133,1777906182000,-500.0,0.00042191,60]
[421575141,1777906182000,-500.0,0.00042191,60]
[421575164,1777906183000,-1948.18,0.00042191,60]
[421575165,1777906183000,-1948.18,0.00042191,60]
[421575169,1777906183000,-1948.18,0.00042191,60]
[421575168,1777906183000,-1948.18,0.00042191,60]
[421575166,1777906183000,-1948.18,0.00042191,60]
[421575163,1777906183000,-1948.18,0.00042191,60]
[421575162,1777906183000,-1948.18,0.00042191,60]
[421575160,1777906183000,-1948.18,0.00042191,60]
[421575157,1777906183000,-1948.18,0.00042191,60]
[421575161,1777906183000,-1948.18,0.00042191,60]
[421575158,1777906183000,-1948.18,0.00042191,60]
[421575155,1777906183000,-218.59,0.00042191,60]
[421575154,1777906183000,-500.0,0.00042191,60]
[421575153,1777906183000,-191.25,0.00042191,60]
[421575152,1777906183000,-500.0,0.00042191,60]
[421575167,1777906183000,-1948.18,0.00042191,60]
[421575159,1777906183000,-1948.18,0.00042191,60]
[421575172,1777906183000,-1948.18,0.00042191,60]
[421575156,1777906183000,-1948.18,0.00042191,60]
[421575173,1777906183000,-1948.18,0.00042191,60]
[421575188,1777906183000,-250.35610027,0.00042191,60]
[421575187,1777906183000,-500.0,0.00042191,60]
[421575186,1777906183000,-500.0,0.00042191,60]
[421575182,1777906183000,-500.0,0.00042191,60]
[421575189,1777906183000,-500.0,0.00042191,60]
[421575185,1777906183000,-500.0,0.00042191,60]
[421575183,1777906183000,-500.0,0.00042191,60]
[421575184,1777906183000,-563.0616149,0.00042191,60]
[421575171,1777906183000,-1948.18,0.00042191,60]
[421575180,1777906183000,-500.0,0.00042191,60]
[421575178,1777906183000,-511.41502103,0.00042191,60]
[421575179,1777906183000,-253.42185639,0.00042191,60]
[421575177,1777906183000,-203.52,0.00042191,60]
[421575176,1777906183000,-500.0,0.00042191,60]
[421575175,1777906183000,-500.0,0.00042191,60]
[421575174,1777906183000,-1948.18,0.00042191,60]
[421575170,1777906183000,-1948.18,0.00042191,60]
[421575181,1777906183000,-500.0,0.00042191,60]
[421575206,1777906184000,-500.0,0.00042191,60]
[421575205,1777906184000,-370.04322528,0.00042191,60]
[421575203,1777906184000,-405.99307547,0.00042191,60]
[421575201,1777906184000,-500.0,0.00042191,60]
[421575202,1777906184000,-500.0,0.00042191,60]
[421575198,1777906184000,-500.0,0.00042191,60]
[421575199,1777906184000,-500.0,0.00042191,60]
[421575196,1777906184000,-500.0,0.00042191,60]
[421575197,1777906184000,-459.72,0.00042191,60]
[421575195,1777906184000,-500.0,0.00042191,60]
[421575207,1777906184000,-372.05825075,0.00042191,60]
[421575194,1777906184000,-500.0,0.00042191,60]
[421575193,1777906184000,-595.11,0.00042191,60]
[421575192,1777906184000,-500.0,0.00042191,60]
[421575191,1777906184000,-500.0,0.00042191,60]
[421575190,1777906184000,-323.09,0.00042191,60]
[421575200,1777906184000,-500.0,0.00042191,60]
[421575208,1777906184000,-500.78571235,0.00042191,60]
[421575204,1777906184000,-501.14093538,0.00042191,60]
[421575209,1777906184000,-500.0,0.00042191,60]
[421575227,1777906184000,-273.33490071,0.00042191,60]
[421575226,1777906184000,-500.0,0.00042191,60]